Cogmind - Beta 14 @@@ ROGUE MODE // 2025.03.27 @ 16:24:58 Player: Jakabob247 Result: Destroyed by L-31 Rogue with Katana Performance ------------- Evolutions (1) 500 Regions Visited (3) 600 Robots Destroyed (10) 50 Value Destroyed (309) 309 Prototype IDs (0) 0 Alien Tech Used (0) 0 Bonus (0) 0 TOTAL SCORE: 1459 Bonus ------- None Cogmind --------- Core Integrity 0/400 Matter 300/300 Energy 350/350 System Corruption 5% Temperature Cool (0) Movement Core (400) Ox7 Location -9/Storage Parts ------- > --- POWER (2) -------- (None) > --- PROPULSION (2) --- (None) > --- UTILITY (3) ------ Large Storage Unit High-capacity Battery > --- WEAPON (2) ------- (None) > --- INVENTORY (15) --- Ion Engine Light Treads Compact Wheel Armored Wheel Armored Wheel Armored Wheel Armored Wheel Small Storage Unit Targeting Computer Improved Light Armor Plating Small Laser Small Laser Minigun Peak State ------------ > --- POWER ------------ Ion Engine Light Ion Engine > --- PROPULSION ------- Wheel Compact Wheel > --- UTILITY ---------- Large Storage Unit High-capacity Battery Improved Light Armor Plating > --- WEAPON ----------- Minigun Minigun > --- INVENTORY -------- Light Treads Aluminum Leg Aluminum Leg Armored Wheel Armored Wheel Armored Wheel Armored Wheel Thermal Generator Small Storage Unit Targeting Computer Small Laser Small Laser Assault Rifle Assault Rifle [Rating: 17] Favorites ----------- Power Ion Engine Engine Ion Engine Propulsion Aluminum Leg Leg Aluminum Leg Wheel Compact Wheel Utility High-capacity Battery Storage High-capacity Battery Protection Improved Light Armor Plating Weapon Minigun Energy Gun Small Laser Ballistic Gun Minigun Build | -11 -10 -9 -9 ------- Run | Yrd Mat Mat Sto Slots Evolved 2 | . . 2 . Power 1 | . . 1 . Propulsion . | . . . . Utility 1 | . . 1 . Weapon . | . . . . Parts Attached 22 | 6 3 13 . Power 6 | 2 . 4 . Engine 6 | 2 . 4 . Core . | . . . . Reactor . | . . . . Propulsion 5 | 2 . 3 . Treads . | . . . . Leg 2 | . . 2 . Wheel 3 | 2 . 1 . Hover . | . . . . Flight . | . . . . Utility 4 | 1 2 1 . Device . | . . . . Storage 3 | 1 2 . . Processor . | . . . . Hackware . | . . . . Protection 1 | . . 1 . Artifact . | . . . . Weapon 7 | 1 1 5 . Energy Gun 1 | . . 1 . Energy Cannon . | . . . . Ballistic Gun 6 | 1 1 4 . Ballistic Cannon . | . . . . Launcher . | . . . . Special Weapon . | . . . . Impact Weapon . | . . . . Slashing Weapon . | . . . . Piercing Weapon . | . . . . Special Melee Weapon . | . . . . Unidentified Prototypes . | . . . . Parts Lost 10 | . . 5 5 Power 4 | . . 2 2 Propulsion 2 | . . 1 1 Utility 1 | . . 1 . Weapon 3 | . . 1 2 Highest Loss Streak 5 | . . 4 5 To Critical Strikes . | . . . . Average Slot Usage (%) 88 | . 93 91 85 Engine 18 | . 14 19 20 Leg 12 | . . 6 21 Wheel 10 | . 28 15 . Storage 22 | . 25 22 22 Protection 2 | . . 6 . Ballistic Gun 21 | . 23 21 20 Peak Build Rating 17 | 5 7 17 14 Average Rating 11 | 3 6 14 13 On Entrance 6 | . 5 7 14 Naked Turns . | . . . . Heaviest Build 41 | 12 33 41 40 Greatest Support 26 | 26 26 26 20 Greatest Overweight (x) 7 | . 1 2 7 Average Overweight (x) . | . . 1 1 Largest Inventory Capacity 15 | 8 15 15 15 Average Capacity 13 | 6 12 15 15 Most Carried 15 | 6 8 15 14 Average Carried 11 | 3 6 13 13 Final Capacity 15 | 8 15 15 15 Final Carried 13 | 6 8 13 13 Class Distribution -------------------- 100% | Mutant Dominant Class ---------------- Mutant | -10/Materials Mutant | -9/Materials Mutant | -9/Storage Resources | -11 -10 -9 -9 ----------- Run | Yrd Mat Mat Sto Matter Collected 634 | 229 65 290 50 Remotely . | . . . . Salvage Created 396 | . 65 281 50 Parts 26 | . 7 17 2 Haulers Intercepted . | . . . . Recyclers Shooed . | . . . . Parts Field Recycled . | . . . . Retrieved Matter . | . . . . Parts Self-Destructed . | . . . . Prevented . | . . . . Kills | -11 -10 -9 -9 ------- Run | Yrd Mat Mat Sto Combat Hostiles Destroyed 9 | . 1 7 1 Guns 9 | . 1 7 1 Classes Destroyed 4 | . 2 2 . Watcher 1 | . 1 . . Swarmer 2 | . . 2 . Grunt 5 | . 1 3 1 Sentry 2 | . . 2 . Best Kill Streak 3 | . 2 3 1 Combat Bots Only 3 | . 1 3 1 Max Kills in Single Turn 1 | . 1 1 1 Gunslinging . | . . . . Exploded . | . . . . Melee . | . . . . Uniques/NPCs Destroyed . | . . . . Combat | -11 -10 -9 -9 -------- Run | Yrd Mat Mat Sto Hostile Shots Fired 169 | . 3 84 82 Missed 52 | . 1 19 32 Damage Taken 1590 | . 22 807 761 Core 430 | . . 115 315 Absorbed by Shields . | . . . . Core Remaining (%) 100 | 100 100 . . Volleys Fired 34 | . 5 26 3 Largest 2 | . 2 2 2 Hottest 50 | . 40 50 50 Shots Fired 69 | . 10 52 7 Gun 69 | . 10 52 7 Cannon . | . . . . Launcher . | . . . . Special . | . . . . Kinetic 69 | . 10 52 7 Thermal . | . . . . Explosive . | . . . . Electromagnetic . | . . . . Robot Hit Streak 8 | . 1 8 1 Robot Miss Streak 3 | . 3 3 2 Penetration Max . | . . . . Secondary Targets 1 | . . 1 . Max Gunslinging Chain 1 | . . 1 . Shots Hit Robots 43 | . 3 38 2 Core Hits 15 | . 2 11 2 Critical Kills . | . . . . Critical Parts Destroyed 1 | . . 1 . Critical Strikes 1 | . . 1 . Destroy 1 | . . 1 . Melee Attacks . | . . . . Impact . | . . . . Slashing . | . . . . Piercing . | . . . . Sneak Attacks . | . . . . Combat Hostiles . | . . . . Follow-up Attacks . | . . . . Damage Inflicted 773 | . 53 680 40 Guns 755 | . 53 668 34 Cannons . | . . . . Explosions . | . . . . Melee . | . . . . Ramming 18 | . . 12 6 Kinetic 755 | . 53 668 34 Thermal . | . . . . Explosive . | . . . . Electromagnetic . | . . . . Impact . | . . . . Slashing . | . . . . Piercing . | . . . . Highest Corruption 5 | . . . 5 Average Corruption 4 | . . . 4 Corruption Purged . | . . . . Corruption Blocked . | . . . . Effects 7 | . . . 7 Message Errors 1 | . . . 1 Matter Fused 2 | . . . 2 Energy Discharges 1 | . . . 1 Parts Rejected 1 | . . . 1 Data Loss (major) 1 | . . . 1 Misfires 1 | . . . 1 Overload Shots . | . . . . Overflow Damage . | . . . . Projectiles . | . . . . Explosions . | . . . . Melee . | . . . . Knockbacks . | . . . . Impact . | . . . . Kinetic . | . . . . Secondary . | . . . . Self-Inflicted Damage . | . . . . Shots . | . . . . Rammed . | . . . . Targets Rammed 9 | . . 4 5 Kicked 9 | . . 4 5 Crushed . | . . . . Highest Temperature 168 | . . 168 22 Average Temperature 36 | . . 39 11 Received Heat Transfer 678 | . 12 414 252 Siege Activations . | . . . . Robots Corrupted . | . . . . Combat Hostiles . | . . . . Parts Fried . | . . . . Impact Corruptions . | . . . . Robots Melted . | . . . . Combat Hostiles . | . . . . Parts Melted . | . . . . Heat Transferred . | . . . . Parts Sabotaged . | . . . . Parts Stolen . | . . . . Parts Stripped . | . . . . Power Chain Reactions . | . . . . Alert | -11 -10 -9 -9 ------- Run | Yrd Mat Mat Sto Peak Influence 158 | . 43 152 158 Initial 63 | . . 17 63 Average 63 | . 16 77 84 Maximum Alert Level . | . . . . Low Security (%) 100 | 100 100 100 100 Level 1 . | . . . . Level 2 . | . . . . Level 3 . | . . . . Level 4 . | . . . . Level 5 . | . . . . High Security . | . . . . Max Security . | . . . . Squads Dispatched 3 | . 1 1 1 Investigation 1 | . . 1 . Extermination . | . . . . Reinforcement 2 | . 1 . 1 Assault . | . . . . Garrison . | . . . . Intercept . | . . . . Searches Triggered . | . . . . Construction Impeded . | . . . . Haulers Reinforced . | . . . . Active Scanning Responses . | . . . . Cargo Convoy Interrupts . | . . . . Stealth | -11 -10 -9 -9 --------- Run | Yrd Mat Mat Sto Distress Signals 1 | . . . 1 Communications Jammed . | . . . . Distress Signals . | . . . . Times Spotted 25 | . 3 11 11 Peak Tracking Total 9 | . 2 4 9 Tactical Retreats 2 | . . . 2 Traps | -11 -10 -9 -9 ------- Run | Yrd Mat Mat Sto Traps Triggered 3 | . . . 3 Indirectly . | . . . . Trap Hack Attempts . | . . . . Triggered . | . . . . Disarmed . | . . . . Reprogrammed . | . . . . Reused . | . . . . Traps Extracted . | . . . . Installed . | . . . . Triggered . | . . . . Machines | -11 -10 -9 -9 ---------- Run | Yrd Mat Mat Sto Machines Disabled . | . . . . Max in Single Turn . | . . . . Machines Repaired . | . . . . Machines Dismantled . | . . . . Machines Sabotaged . | . . . . Overloaded Fab Kills . | . . . . Hacking | -11 -10 -9 -9 --------- Run | Yrd Mat Mat Sto Machines Accessed 1 | . . 1 . Terminals 1 | . . 1 . Fabricators . | . . . . Repair Stations . | . . . . Recycling Units . | . . . . Scanalyzers . | . . . . Garrison Access . | . . . . Total Hacks 5 | . . 5 . Successful 1 | . . 1 . Failed 4 | . . 4 . Catastrophic 1 | . . 1 . Database Lockouts . | . . . . Manual . | . . . . Terminals 5 | . . 5 . Fabricators . | . . . . Repair Stations . | . . . . Recycling Units . | . . . . Scanalyzers . | . . . . Garrison Access . | . . . . Terminal Hacks 1 | . . 1 . Transport Status 1 | . . 1 . Fabricator Hacks . | . . . . Repair Station Hacks . | . . . . Recycling Unit Hacks . | . . . . Scanalyzer . | . . . . Garrison Access Hacks . | . . . . Unauthorized Hacks . | . . . . Terminals . | . . . . Fabricators . | . . . . Repair Stations . | . . . . Recycling Units . | . . . . Scanalyzers . | . . . . Garrison Access . | . . . . Data Cores Recovered . | . . . . Used . | . . . . Hacking Detections 1 | . . 1 . Full Trace Events 1 | . . 1 . Feedback Events . | . . . . Feedback Blocked . | . . . . Robot Schematics Acquired . | . . . . Robots Built . | . . . . Authchips . | . . . . Time . | . . . . Total Robot Build Rating . | . . . . Part Schematics Acquired . | . . . . Parts Built . | . . . . Authchips . | . . . . Time . | . . . . Total Part Build Rating . | . . . . Parts Repaired . | . . . . Time . | . . . . Parts Recycled . | . . . . Recycled Matter . | . . . . Retrieved Matter . | . . . . Retrieved Components . | . . . . Parts Scanalyzed . | . . . . Part Schematics Acquired . | . . . . Parts Damaged . | . . . . Bothacking | -11 -10 -9 -9 ------------ Run | Yrd Mat Mat Sto Used RIF Installer . | . . . . Robots Hacked . | . . . . Non-combat . | . . . . Combat . | . . . . Robot Hacks Applied . | . . . . Relay Couplers Released . | . . . . Fabnet Peak Effective % . | . . . . Robots Rewired . | . . . . Allies Hacked . | . . . . Hacks Repelled . | . . . . Allies | -11 -10 -9 -9 -------- Run | Yrd Mat Mat Sto Total Allies . | . . . . Largest Group . | . . . . Highest-Rated Group . | . . . . Highest-Rated Ally . | . . . . Total Orders . | . . . . Ally Attacks . | . . . . Total Damage . | . . . . Kills . | . . . . Allies Corrupted . | . . . . Allies Melted . | . . . . Intel | -11 -10 -9 -9 ------- Run | Yrd Mat Mat Sto Robot Analysis Total . | . . . . Derelict Logs Recovered . | . . . . Drone Launches . | . . . . Drone Recoveries . | . . . . Exploration | -11 -10 -9 -9 ------------- Run | Yrd Mat Mat Sto Turns Passed 925 | 68 166 295 396 Spaces Moved 527 | 60 123 153 191 Core 5 | 4 . . 1 Treads . | . . . . Legs 214 | . . 24 190 Wheels 308 | 56 123 129 . Hover . | . . . . Flight . | . . . . Fastest Speed 50 | 50 90 105 190 Average Speed 136 | 87 96 119 191 Slowest Speed 400 | 90 105 190 400 Overloaded Moves . | . . . . Propulsion Burnouts . | . . . . Robots Hopped . | . . . . Cave-ins Triggered . | . . . . Exploration Rate (%) 19 | 3 21 14 40 Regions Visited 3 Branch Regions 1 Pre-discovered Areas . | . . . . Known Exits Taken . | . . . . Unknown Exits Taken 3 | 1 1 1 . Scrap Searched . | . . . . Spaces Dug . | . . . . Terrain Destroyed . | . . . . Melee . | . . . . Projectile . | . . . . AOE . | . . . . Terrain Rammed . | . . . . Walls Destroyed . | . . . . Machines Disabled . | . . . . Actions | -11 -10 -9 -9 --------- Run | Yrd Mat Mat Sto Total 667 | 73 159 223 212 Wait 49 | . 27 11 11 Move 525 | 59 122 153 191 Hop . | . . . . Pick Up 21 | 7 2 11 1 Fast Attach 7 | 4 1 2 . Attach 9 | 1 1 7 . Detach 3 | . . 3 . Swap 6 | 1 1 4 . Drop 5 | 1 . 3 1 Fire 34 | . 5 26 3 Melee . | . . . . Ram . | . . . . Kick 8 | . . 3 5 Crush . | . . . . Escape Stasis . | . . . . Rewire . | . . . . Trap . | . . . . Miscellaneous . | . . . . Route ------- -11/Scrapyard -10/Materials -9/Materials -9/Storage History --------- Turn | Location | Event 7 | -11/Scrapyard | Discovered new exit (range 15) 69 | -11/Scrapyard | Entered Materials 187 | -10/Materials | Discovered new exit (range 16) 235 | -10/Materials | Entered another Materials area 235 | -9/Materials | Evolved 2 slots: Power x1, Utility x1 317 | -9/Materials | Build established: Mutant 408 | -9/Materials | Discovered new exit (range 15) 468 | -9/Materials | Lost 4 parts (2p1n1w) 530 | -9/Materials | Entered Storage 917 | -9/Storage | Core integrity fell below 50% 924 | -9/Storage | Core integrity fell below 20% 926 | -9/Storage | Destroyed by L-31 Rogue with Katana Last Messages --------------- 00815_ ALERT: Hostiles spotted, dispatching reinforcements to Terminal S011. 00823_ System corrupted: Substantial component data lost. 00828_ Kicked R-06 Scavenger out of the way. 00845_ Kicked K-01 Serf out of the way. 00858_ W-16 Scout sends out distress signal. 00870_ System corrupted: Matter fused (-9). 00887_ System corrupted: FCS attempts to trigger Minigun. 00887_ System corrupted: Minigun misfires. 00897_ Ion Engine destroyed. 00907_ Minigun destroyed. 00914_ Kicked L-31 Rogue. 00916_ Kicked L-31 Rogue out of the way. 00919_ Aluminum Leg destroyed. 00922_ System corrupted: Aluminum Leg rejected. 00922_ U-05 Engineer suffers critical hit (Destroy). 00924_ U-05 Engineer builds a Door. Map ----- +----------------------------------------------------+ | ???????????????????????# ""??# #######??""?? | | ???????????????????????# """ # # ""?? | | ???????????????????????# """ + + ""?? | | ?????????????????###+### # #?????? | | ?????????????????# ####### ####??? | | ?????????????????# | | ?????????????????# T | | ?????????????????# | | ?????????????????# ##################### | | ???????????#???#### ##???????????????????? | | ?????????? """?? ?# #????????????????????? | | ?????????" "R" ? # #????????????????????? | | ????????"T " " # #????????????????????? | | ???????#"" + k#????????????????????? | | ?????????# #Y #????????????????????? | | ?????????# """??# #????????????????????? | | ?????????# "????# #????????????????????? | | ??????????????????# Y#????????????????????? | | ??????????????????# #????????????????????? | | ??????????????????# g############?????????? | | ??????????????????# # #?????????? | | ??????????????????# u# #??????????? | | ??????????????????# u# #??????????? | | ??????????????????# +%""" ""?????????????? | | ??????????????????# lg#%""" ""?????????????? | | ??????????????????#@ Y# """ ""?????????????? | | ??????????????????# # ???????????? | | ??????????????????# # ???????????? | | ??????????????????# #########????????????? | | ?????????????????? ????????????????????? | | ????????????????? #???????????????????? | | ???????????????? #???????????????????? | | ???????????????? #???????????????????? | | ???????????????### #???????????????????? | | ?????????????????#######???????????????????? | | ???????????????????????????????????????????? | | ???????????????????????????????????????????? | | ???????????????????????????????????????????? | | ???????????????????????????????????????????? | | | | | | | | | | | | | | | | | | | | | | | +----------------------------------------------------+ Best States ------------- Heat Dissipation 28 Energy Generation 15 Energy Capacity 650 Matter Stores 300 Matter Capacity 300 Sight Range 16 Terrain Scan Density 10 Armor Coverage 150 Evasion (%) 44 Item Schematics ----------------- None Robot Schematics ------------------ None Fabricated ------------ Nothing Alien Tech Used ----------------- None Achievements -------------- None Challenges ------------ None Game ------ Seed PortablePiercingBroadsword Manual? 0 Play Time 00:12:07 Cumulative 6.2 hours Start 2025.03.27 @ 12:46:14 End 2025.03.27 @ 16:24:58 Sessions 3 Manual Loads 0 Difficulty Rogue Special Mode None Game No. 21 Rogue 21 Adventurer 0 Explorer 0 Win Type - Total 0 Types 0/0/0/0/0/0/0/0/0 Lore% 3 Gallery% 9 Achievement% 9 Wizard Run 0 Options --------- Layout 1 ASCII 0 Keyboard 1 Movement Numpad Keybinds 0 Fullscreen 0 Font 28/SmallcapsGlow Map View 50x35 Zoom Use 0% Tactical HUD 1 Map Filters NONE Filters NONE Steam 1 RUN: 5cb9d4ef-894f-4f90-b54f-44982252bdb1